[Event "Seniors-LEM-65 Sachsen-Anhalt 2024"]
[Site "Magdeburg"]
[Date "2024.07.06"]
[Round "6.20"]
[White "Christen, Pierre"]
[Black "Funke, Arnold"]
[Result "1/2-1/2"]
[ECO "A10"]
[WhiteElo "1946"]
[BlackElo "1902"]
[Annotator "NA RC"]
[PlyCount "72"]
[EventDate "2024.06.25"]
[EventType "swiss"]
[EventCountry "GER"]
[SourceTitle "playchess.com"]
[Source "ChessBase"]
[SourceQuality "1"]
[TimeControl "40/5400+30:1800+30"]

1. c4 {[%emt 0:00:04]} e6 {[%emt 0:00:18]} 2. g3 {[%emt 0:00:10]} f5 {[%emt 0:00:06]} 3. Bg2 {[%emt 0:00:14]} Nf6 {[%emt 0:00:05]} 4. d3 {[%emt 0:00:25]} Bb4+ {[%emt 0:00:16]} 5. Nd2 {[%emt 0:00:36]} O-O {[%emt 0:00:26]} 6. a3 {[%emt 0:00:29] A10: English Opening: Unusual Replies for Black.} Bxd2+ {[%emt 0:00:07]} 7. Bxd2 {[%emt 0:00:13]} d6 {[%emt 0:00:28]} 8. e3 {[%emt 0:01:53]} c6 {[%emt 0:00:40]} 9. Ne2 {[%emt 0:04:00]} e5 {[%emt 0:00:52]} 10. Qb3 {[%emt 0:01:33]} Kh8 {[%emt 0:00:33]} 11. O-O {[%emt 0:00:24]} Nbd7 {[%emt 0:00:10]} 12. Qc2 {[%emt 0:01:53]} Qe8 {[%emt 0:00:42]} 13. Nc3 {[%emt 0:07:51]} Qh5 {[%emt 0:05:00]} 14. h3 {[%emt 0:01:58]} g5 {[%emt 0:03:45]} 15. Qd1 {[%emt 0:01:49]} Qg6 {[%emt 0:00:26]} 16. f4 {[%emt 0:03:21]} (16. b4 $14) 16... gxf4 {[%emt 0:02:00]} 17. gxf4 {[%emt 0:02:39]} ({White should try} 17. exf4 $15 Qxg3 18. Ne2 Qxd3 19. Bb4 Qe3+ (19... Qxc4 20. Bxd6 Rg8 21. fxe5 $14) 20. Kh2) 17... Rg8 {[%emt 0:03:41]} 18. Qe2 {[%emt 0:01:56]} Nh5 {[%emt 0:00:20]} 19. Be1 {[%emt 0:01:27]} Ndf6 {[%emt 0:02:28]} (19... Nc5 $19 20. Rf2 Rg7) 20. Bh4 {[%emt 0:01:59]} Bd7 {[%emt 0:03:51]} 21. Kh1 {[%emt 0:05:59]} Rg7 {[%emt 0:03:04]} 22. Rg1 {[%emt 0:03:04]} Rag8 {[%emt 0:00:15]} 23. Bf3 {[%emt 0:10:05]} Qxg1+ {[%emt 0:13:09]} 24. Rxg1 {[%emt 0:00:20]} Rxg1+ {[%emt 0:00:07]} 25. Kh2 {[%emt 0:00:08]} h6 {[%emt 0:09:35]} 26. Bg4 {[%emt 0:11:04]} fxg4 {[%emt 0:10:30]} 27. Bxf6+ {[%emt 0:01:29]} Nxf6 {[%emt 0:01:01]} 28. Kxg1 {[%emt 0:01:39]} gxh3+ {[%emt 0:02:13]} 29. Kh1 {[%emt 0:04:49] [#]} Rg2 $1 {[%emt 0:00:36]} 30. Qe1 $19 {[%emt 0:01:21]} Bg4 {[%emt 0:02:14]} 31. Qh4 {[%emt 0:01:24]} Kg7 {[%emt 0:00:20]} 32. fxe5 {[%emt 0:04:36]} dxe5 {[%emt 0:00:35]} 33. Ne4 {[%emt 0:00:51]} Nxe4 {[%emt 0:05:49]} 34. Qe7+ {[%emt 0:00:27]} Kg6 {[%emt 0:00:31]} 35. dxe4 {[%emt 0:00:28]} Rf2 {[%emt 0:10:26]} 36. Qe8+ {[%emt 0:07:31]} Kh7 {[%emt 0:03:50]} 1/2-1/2

[Event "Seniors-LEM-65 Sachsen-Anhalt 2024"]
[Site "Magdeburg"]
[Date "2024.07.06"]
[Round "6.25"]
[White "Domsgen, Bernd"]
[Black "Schwarz, Hans"]
[Result "1/2-1/2"]
[ECO "C01"]
[WhiteElo "1963"]
[BlackElo "1856"]
[Annotator "NA RC"]
[PlyCount "111"]
[EventDate "2024.06.25"]
[EventType "swiss"]
[EventCountry "GER"]
[SourceTitle "playchess.com"]
[Source "ChessBase"]
[SourceQuality "1"]
[TimeControl "40/5400+30:1800+30"]

1. e4 {[%emt 0:00:02]} e6 {[%emt 0:00:44]} 2. d4 {[%emt 0:00:10]} d5 {[%emt 0:02:36]} 3. exd5 {[%emt 0:00:02]} exd5 {[%emt 0:00:18]} 4. Bd3 {[%emt 0:00:02]} Bd6 {[%emt 0:01:05]} 5. h3 {[%emt 0:00:06]} Nc6 {[%emt 0:00:46]} 6. c3 {[%emt 0:00:09]} Nf6 {[%emt 0:02:18] C01: French: Exchange Variation.} 7. Nf3 {[%emt 0:00:27]} h6 {[%emt 0:00:28]} 8. O-O {[%emt 0:00:10]} O-O {[%emt 0:00:18]} 9. Re1 {[%emt 0:01:02]} Re8 {[%emt 0:00:51]} 10. Be3 {[%emt 0:00:06]} Be6 {[%emt 0:05:43]} 11. Nbd2 {[%emt 0:00:50]} Qd7 {[%emt 0:01:24]} 12. Nf1 {[%emt 0:01:39]} Bf5 {[%emt 0:02:04]} 13. Nh4 {[%emt 0:08:56]} Bxd3 {[%emt 0:04:38]} 14. Qxd3 {[%emt 0:01:32]} Ne4 {[%emt 0:03:00]} ({Black should play} 14... Ne7 $15) 15. b4 {[%emt 0:03:27]} (15. f3 $11 Be7 16. fxe4 Bxh4 17. exd5 Qxd5 (17... Bxe1 $2 18. dxc6 bxc6 19. Rxe1 $18) 18. Re2) 15... Be7 {[%emt 0:03:15]} 16. Nf3 {[%emt 0:00:18]} Bf6 {[%emt 0:00:26]} 17. a4 {[%emt 0:00:25]} a6 {[%emt 0:01:35]} 18. N3h2 {[%emt 0:02:17]} Qf5 {[%emt 0:06:48]} 19. f3 {[%emt 0:21:16]} Nd6 {[%emt 0:04:48]} 20. Qxf5 {[%emt 0:00:31]} Nxf5 {[%emt 0:00:01]} 21. Bf4 {[%emt 0:00:04]} Rec8 {[%emt 0:04:13]} 22. Ng4 {[%emt 0:00:28]} Bh4 {[%emt 0:04:18]} 23. g3 {[%emt 0:10:15]} Be7 {[%emt 0:07:09]} 24. Ne5 {[%emt 0:04:01]} Bd6 {[%emt 0:04:37]} 25. g4 {[%emt 0:09:52]} Bxe5 {[%emt 0:03:10]} 26. Bxe5 {[%emt 0:00:48]} Nh4 {[%emt 0:03:56]} 27. Kf2 $11 {[%emt 0:00:33]} Ng6 {[%emt 0:02:12]} 28. Bg3 {[%emt 0:00:02]} Nf8 {[%emt 0:05:32]} 29. f4 {[%emt 0:02:38]} Ne6 {[%emt 0:02:46]} 30. h4 {[%emt 0:01:00]} g6 {[%emt 0:00:54]} 31. Ne3 {[%emt 0:01:10]} Ne7 {[%emt 0:05:07]} 32. f5 {[%emt 0:00:43]} gxf5 {[%emt 0:02:20]} 33. gxf5 {[%emt 0:00:01]} Nf8 {[%emt 0:08:03]} 34. f6 {[%emt 0:00:07]} Nc6 {[%emt 0:01:15]} 35. Nxd5 {[%emt 0:00:07]} Ne6 {[%emt 0:01:07]} 36. Ne7+ {[%emt 0:02:05]} Nxe7 {[%emt 0:00:49]} 37. fxe7 {[%emt 0:00:03]} c6 {[%emt 0:00:43]} 38. Be5 {[%emt 0:00:41]} f5 {[%emt 0:01:04]} 39. c4 {[%emt 0:00:13]} Kf7 {[%emt 0:01:29]} 40. d5 {[%emt 0:00:08]} cxd5 {[%emt 0:00:21]} 41. cxd5 {[%emt 0:30:02]} Rc2+ {[%emt 0:30:22]} 42. Ke3 {[%emt 0:01:10]} f4+ {[%emt 0:04:03]} 43. Kd3 {[%emt 0:01:19]} Rac8 {[%emt 0:00:32]} 44. dxe6+ {[%emt 0:07:47]} Kxe7 {[%emt 0:00:26]} 45. Bxf4 {[%emt 0:01:25]} R8c3+ {[%emt 0:00:30]} 46. Kd4 {[%emt 0:00:14]} Rc4+ {[%emt 0:00:14]} 47. Ke5 {[%emt 0:02:54]} Rxb4 {[%emt 0:00:17]} 48. Rad1 {[%emt 0:00:17]} Rc5+ {[%emt 0:00:20]} 49. Rd5 {[%emt 0:01:03]} Rxd5+ {[%emt 0:00:11]} 50. Kxd5 {[%emt 0:00:05]} Rxf4 {[%emt 0:00:16]} 51. Rg1 {[%emt 0:00:05]} Rf5+ {[%emt 0:00:47]} 52. Ke4 {[%emt 0:00:32]} Kxe6 {[%emt 0:01:53]} 53. Rg6+ {[%emt 0:00:01]} Rf6 {[%emt 0:00:28]} 54. Rg7 {[%emt 0:00:02]} Rf7 {[%emt 0:01:45]} 55. Rg6+ {[%emt 0:00:01]} Rf6 {[%emt 0:00:44]} 56. Rg7 {[%emt 0:00:02]} 1/2-1/2

[Event "Seniors-LEM-65 Sachsen-Anhalt 2024"]
[Site "Magdeburg"]
[Date "2024.07.06"]
[Round "6.26"]
[White "Schwis, Joachim"]
[Black "Kluever, Horst"]
[Result "1/2-1/2"]
[ECO "A23"]
[WhiteElo "1950"]
[BlackElo "1850"]
[Annotator "RC"]
[PlyCount "72"]
[EventDate "2024.06.25"]
[EventType "swiss"]
[EventCountry "GER"]
[SourceTitle "playchess.com"]
[Source "ChessBase"]
[SourceQuality "1"]
[TimeControl "40/5400+30:1800+30"]

1. c4 {[%emt 0:00:05]} e5 {[%emt 0:01:08]} 2. Nc3 {[%emt 0:01:21]} Nf6 {[%emt 0:00:55]} 3. g3 {[%emt 0:00:13]} Bc5 {[%emt 0:01:01]} 4. Bg2 {[%emt 0:01:07]} O-O {[%emt 0:00:24]} 5. e3 {[%emt 0:05:30]} c6 {[%emt 0:01:10]} 6. d3 {[%emt 0:09:28]} d6 {[%emt 0:01:19]} 7. Nge2 {[%emt 0:03:55]} Be6 {[%emt 0:00:57]} 8. b3 {[%emt 0:02:59]} a6 {[%emt 0:04:24]} 9. O-O {[%emt 0:01:06]} h6 {[%emt 0:01:23]} 10. d4 {[%emt 0:02:58]} Bb4 {[%emt 0:01:55]} 11. Bb2 {[%emt 0:05:14]} Bxc3 {[%emt 1:21:24]} 12. Nxc3 {[%emt 1:02:34]} Qc7 {[%emt 0:00:00]} 13. Rc1 {[%emt 0:00:00]} Qe7 {[%emt 0:00:00]} 14. Re1 {[%emt 0:00:00]} Nbd7 {[%emt 0:00:00]} 15. Qd2 {[%emt 0:00:00]} Nb6 {[%emt 0:00:00]} 16. f4 {[%emt 0:00:00]} exf4 {[%emt 0:00:00]} 17. exf4 {[%emt 0:00:00]} Qd7 {[%emt 0:00:00]} 18. Ne4 {[%emt 0:00:00]} Nxe4 {[%emt 0:00:00]} 19. Bxe4 {[%emt 0:00:00]} Bf5 {[%emt 0:00:00]} 20. Qd3 {[%emt 0:00:00]} Bxe4 {[%emt 0:00:00]} 21. Qxe4 {[%emt 0:00:00]} Rfe8 {[%emt 0:00:00]} 22. Qb1 {[%emt 0:00:00]} Rxe1+ {[%emt 0:00:00]} 23. Rxe1 {[%emt 0:00:00]} Re8 {[%emt 0:00:00]} 24. Kg2 {[%emt 0:00:00]} Rxe1 {[%emt 0:00:00]} 25. Qxe1 {[%emt 0:00:00]} Qe6 {[%emt 0:00:00]} 26. Qxe6 {[%emt 0:00:00]} fxe6 {[%emt 0:00:00]} 27. Ba3 {[%emt 0:00:00]} d5 {[%emt 0:00:00]} 28. Bc5 {[%emt 0:00:00]} Nd7 {[%emt 0:00:00]} 29. Bd6 {[%emt 0:00:00]} Kf7 {[%emt 0:00:00]} 30. c5 {[%emt 0:00:00]} Nf6 {[%emt 0:00:00]} 31. Bc7 {[%emt 0:00:00]} Ne4 {[%emt 0:00:00]} 32. Ba5 {[%emt 0:00:00]} g6 {[%emt 0:00:00]} 33. Kf3 {[%emt 0:00:00]} h5 {[%emt 0:00:00]} 34. Be1 {[%emt 0:00:00]} Nf6 {[%emt 0:00:00]} 35. h3 {[%emt 0:00:00]} Nd7 {[%emt 0:00:00]} 36. Ba5 {[%emt 0:00:00]} Nf6 {[%emt 0:00:00]} 1/2-1/2

[Event "Seniors-LEM-65 Sachsen-Anhalt 2024"]
[Site "Magdeburg"]
[Date "2024.07.06"]
[Round "6.27"]
[White "Heise, Juergen"]
[Black "Bernhardt, Eduard"]
[Result "1-0"]
[ECO "A01"]
[WhiteElo "1930"]
[BlackElo "1717"]
[Annotator "NA RC"]
[PlyCount "69"]
[EventDate "2024.06.25"]
[EventType "swiss"]
[EventCountry "GER"]
[SourceTitle "playchess.com"]
[Source "ChessBase"]
[SourceQuality "1"]
[TimeControl "40/5400+30:1800+30"]

1. b3 {[%emt 0:00:05]} d6 {[%emt 0:00:42]} 2. Bb2 {[%emt 0:00:08]} e5 {[%emt 0:00:17]} 3. e3 {[%emt 0:00:28]} f5 {[%emt 0:01:48]} 4. Nf3 {[%emt 0:01:13]} Nf6 {[%emt 0:00:47]} 5. d4 {[%emt 0:00:40]} e4 {[%emt 0:03:19]} 6. Nfd2 {[%emt 0:00:02]} d5 {[%emt 0:02:00]} 7. c4 {[%emt 0:00:47]} c6 {[%emt 0:03:03]} 8. Nc3 {[%emt 0:01:34]} Be7 {[%emt 0:02:48]} 9. Be2 {[%emt 0:03:29]} O-O {[%emt 0:00:19]} 10. a3 {[%emt 0:00:40]} Qe8 {[%emt 0:01:57]} 11. Qc2 {[%emt 0:02:34]} Qf7 {[%emt 0:02:45]} 12. h3 {[%emt 0:01:28]} Na6 {[%emt 0:03:29]} 13. b4 $15 {[%emt 0:07:59]} (13. O-O-O $1 $11 {deserves consideration.}) 13... Be6 {[%emt 0:03:11]} 14. Na4 {[%emt 0:05:29]} Nc7 {[%emt 0:07:12]} 15. cxd5 {[%emt 0:04:27]} Bxd5 {[%emt 0:05:11]} 16. Nc4 {[%emt 0:04:20]} Nd7 {[%emt 0:03:20]} 17. Nc5 {[%emt 0:04:31]} Nxc5 {[%emt 0:02:47]} 18. dxc5 {[%emt 0:01:13]} Rad8 {[%emt 0:01:55]} 19. O-O {[%emt 0:06:25]} f4 {[%emt 0:04:05]} 20. exf4 {[%emt 0:05:37]} Ne6 {[%emt 0:02:55]} 21. g3 {[%emt 0:01:54]} Nxf4 {[%emt 0:03:56]} 22. gxf4 {[%emt 0:01:04]} Qxf4 {[%emt 0:00:44]} 23. Be5 {[%emt 0:03:07]} Qf5 {[%emt 0:04:48]} 24. Qc3 {[%emt 0:08:40]} Bf6 {[%emt 0:06:42]} 25. Kh2 {[%emt 0:06:58]} b5 {[%emt 0:01:00]} 26. cxb6 {[%emt 0:00:51]} axb6 {[%emt 0:00:49]} 27. Rg1 {[%emt 0:03:10]} b5 {[%emt 0:01:26]} 28. Bg4 {[%emt 0:02:39]} Bxe5+ {[%emt 0:01:53]} 29. Nxe5 {[%emt 0:01:13]} Qxf2+ {[%emt 0:02:08]} 30. Rg2 {[%emt 0:00:02]} Qf6 {[%emt 0:01:23]} 31. Rc1 {[%emt 0:04:14]} e3 {[%emt 0:01:26]} 32. Qxe3 {[%emt 0:07:48]} Bxg2 {[%emt 0:00:42]} 33. Kxg2 {[%emt 0:00:17]} Rfe8 {[%emt 0:01:00]} 34. Qb3+ {[%emt 0:00:39]} Kh8 {[%emt 0:01:30]} 35. Nf7+ {[%emt 0:00:30]} 1-0

[Event "Seniors-LEM-65 Sachsen-Anhalt 2024"]
[Site "Magdeburg"]
[Date "2024.07.06"]
[Round "6.28"]
[White "Zechel, Rolf-Ruediger"]
[Black "Niebuhr, Gerd"]
[Result "1/2-1/2"]
[ECO "A45"]
[WhiteElo "1870"]
[BlackElo "1917"]
[Annotator "RC"]
[PlyCount "25"]
[EventDate "2024.06.25"]
[EventType "swiss"]
[EventCountry "GER"]
[SourceTitle "playchess.com"]
[Source "ChessBase"]
[SourceQuality "1"]
[TimeControl "40/5400+30:1800+30"]

1. d4 {[%emt 0:00:03]} Nf6 {[%emt 0:00:11]} 2. Bg5 {[%emt 0:00:12]} c5 {[%emt 0:00:34]} 3. d5 {[%emt 0:00:21]} Ne4 {[%emt 0:00:29]} 4. Bf4 {[%emt 0:01:17]} Qb6 {[%emt 0:00:47]} 5. Bc1 {[%emt 0:02:47]} g6 {[%emt 0:01:56]} 6. f3 {[%emt 0:03:43]} Nf6 {[%emt 0:00:17]} 7. e4 {[%emt 0:00:45]} d6 {[%emt 0:00:21]} 8. Na3 {[%emt 0:02:14]} Bg7 {[%emt 0:00:18]} 9. Nc4 {[%emt 0:00:28]} Qc7 {[%emt 0:00:27]} 10. a4 {[%emt 0:02:48]} O-O {[%emt 0:03:15]} 11. Bf4 {[%emt 0:03:30]} Nbd7 {[%emt 0:01:34]} 12. Qd2 {[%emt 0:05:28]} Ne5 {[%emt 0:04:19]} 13. Nxe5 {[%emt 0:02:23]} 1/2-1/2

[Event "Seniors-LEM-65 Sachsen-Anhalt 2024"]
[Site "Magdeburg"]
[Date "2024.07.06"]
[Round "6.29"]
[White "Boettcher, Frank"]
[Black "Kalkmann, Hans"]
[Result "1-0"]
[ECO "D66"]
[WhiteElo "1848"]
[BlackElo "1910"]
[Annotator "NA RC"]
[PlyCount "57"]
[EventDate "2024.06.25"]
[EventType "swiss"]
[EventCountry "GER"]
[SourceTitle "playchess.com"]
[Source "ChessBase"]
[SourceQuality "1"]
[TimeControl "40/5400+30:1800+30"]

1. d4 {[%emt 0:00:09]} e6 {[%emt 0:00:27]} 2. c4 {[%emt 0:00:07]} d5 {[%emt 0:00:07]} 3. Nc3 {[%emt 0:00:24]} Nf6 {[%emt 0:00:22]} 4. Bg5 {[%emt 0:00:11]} Be7 {[%emt 0:00:19]} 5. e3 {[%emt 0:00:07]} O-O {[%emt 0:00:20]} 6. Nf3 {[%emt 0:00:03]} Nbd7 {[%emt 0:00:56]} 7. Rc1 {[%emt 0:00:15]} c6 {[%emt 0:00:21]} 8. Bd3 {[%emt 0:00:18]} h6 {[%emt 0:00:16]} 9. Bh4 {[%emt 0:00:18]} Re8 {[%emt 0:01:18]} 10. h3 {[%emt 0:01:56]} dxc4 {[%emt 0:00:26]} 11. Bxc4 {[%emt 0:00:12]} Nd5 {[%emt 0:00:21]} 12. Bxe7 {[%emt 0:03:17]} Qxe7 {[%emt 0:00:18]} 13. O-O {[%emt 0:00:46]} Nxc3 {[%emt 0:00:20]} 14. Rxc3 {[%emt 0:06:13]} e5 {[%emt 0:01:01]} 15. Qb3 {[%emt 0:05:59]} e4 {[%emt 0:00:52]} 16. Nd2 {[%emt 0:06:11]} Nb6 {[%emt 0:01:19]} 17. f3 {[%emt 0:00:17]} Nxc4 {[%emt 0:00:49]} 18. Qxc4 {[%emt 0:03:00]} Be6 {[%emt 0:00:51]} 19. Qa4 {[%emt 0:10:05]} Bd5 {[%emt 0:04:19]} 20. fxe4 {[%emt 0:10:46]} Bxe4 {[%emt 0:00:21]} 21. Rf4 {[%emt 0:00:24]} f5 {[%emt 0:00:28]} 22. Nxe4 {[%emt 0:03:20]} fxe4 {[%emt 0:00:40]} 23. Qb3+ {[%emt 0:11:17]} Kh8 {[%emt 0:05:27]} 24. Rf7 {[%emt 0:03:16]} Qh4 {[%emt 0:00:08]} 25. Qxb7 {[%emt 0:01:37]} Qg3 {[%emt 0:00:09]} 26. Qxc6 {[%emt 0:02:52]} Rac8 {[%emt 0:00:49]} 27. Qd7 {[%emt 0:03:45]} Rb8 {[%emt 0:02:25]} 28. Qc7 {[%emt 0:06:01]} Rxb2 {[%emt 0:00:32]} 29. Qxg3 {[%emt 0:00:04]} 1-0